[Event "Live Chess"]
[Site "Chess.com"]
[Date "2023.05.21"]
[Round "-"]
[White "Singapourfeuj"]
[Black "JohanKjeldahl"]
[Result "1/2-1/2"]
[WhiteElo "2208"]
[BlackElo "1875"]
[TimeControl "300"]
[EndTime "23:22:10 PDT"]
[Termination "Game drawn by repetition"]

1. d4 {[%clk 0:04:59.5]} 1... Nf6 {[%clk 0:04:57.1]} 2. Nf3 {[%clk 0:04:57.9]}
2... e6 {[%clk 0:04:55.4]} 3. c4 {[%clk 0:04:56.8]} 3... b6 {[%clk 0:04:51.8]}
4. g3 {[%clk 0:04:56.1]} 4... Bb7 {[%clk 0:04:50.7]} 5. Bg2 {[%clk 0:04:55.3]}
5... Be7 {[%clk 0:04:49.7]} 6. O-O {[%clk 0:04:54.3]} 6... O-O {[%clk
0:04:47.8]} 7. Nc3 {[%clk 0:04:52.7]} 7... d5 {[%clk 0:04:46.1]} 8. Ne5 {[%clk
0:04:51.6]} 8... c5 {[%clk 0:04:41.8]} 9. cxd5 {[%clk 0:04:50.5]} 9... Nxd5
{[%clk 0:04:34.4]} 10. Nxd5 {[%clk 0:04:48.8]} 10... Bxd5 {[%clk 0:04:24.3]} 11.
e4 {[%clk 0:04:47.8]} 11... Bb7 {[%clk 0:04:22.9]} 12. d5 {[%clk 0:04:46.3]}
12... exd5 {[%clk 0:04:19.9]} 13. exd5 {[%clk 0:04:45.2]} 13... Bd6 {[%clk
0:04:16.4]} 14. Nc4 {[%clk 0:04:44.1]} 14... Na6 {[%clk 0:04:10.6]} 15. Nxd6
{[%clk 0:04:41.7]} 15... Qxd6 {[%clk 0:04:09.4]} 16. Bf4 {[%clk 0:04:40.9]}
16... Qd7 {[%clk 0:04:05.1]} 17. d6 {[%clk 0:04:37.9]} 17... Bxg2 {[%clk
0:04:03.3]} 18. Kxg2 {[%clk 0:04:37.1]} 18... Rad8 {[%clk 0:03:57.9]} 19. h4
{[%clk 0:04:34.9]} 19... Rfe8 {[%clk 0:03:49.7]} 20. Re1 {[%clk 0:04:32.3]}
20... h6 {[%clk 0:03:46.3]} 21. Qf3 {[%clk 0:04:27.1]} 21... Nb4 {[%clk
0:03:39.1]} 22. Rxe8+ {[%clk 0:04:23.2]} 22... Rxe8 {[%clk 0:03:35.1]} 23. Rd1
{[%clk 0:04:21.1]} 23... Nxa2 {[%clk 0:03:27.9]} 24. h5 {[%clk 0:04:19.9]} 24...
Nb4 {[%clk 0:03:23.4]} 25. Qc3 {[%clk 0:04:14.9]} 25... Nc6 {[%clk 0:03:15.1]}
26. Re1 {[%clk 0:04:13.6]} 26... Nd4 {[%clk 0:03:03.1]} 27. Rxe8+ {[%clk
0:04:08.5]} 27... Qxe8 {[%clk 0:03:00.3]} 28. Qe3 {[%clk 0:04:05.8]} 28... Qc6+
{[%clk 0:02:47.1]} 29. f3 {[%clk 0:04:03.7]} 29... Ne6 {[%clk 0:02:44.2]} 30.
Qe4 {[%clk 0:03:58.2]} 30... Nxf4+ {[%clk 0:02:30.3]} 31. Qxf4 {[%clk
0:03:55.7]} 31... Qd7 {[%clk 0:02:18.1]} 32. Qe5 {[%clk 0:03:52.6]} 32... Kf8
{[%clk 0:02:11.8]} 33. g4 {[%clk 0:03:51]} 33... f6 {[%clk 0:02:08.5]} 34. Qd5
{[%clk 0:03:49.4]} 34... c4 {[%clk 0:01:45.5]} 35. Kh3 {[%clk 0:03:36.7]} 35...
b5 {[%clk 0:01:42.8]} 36. Qa8+ {[%clk 0:03:28.9]} 36... Kf7 {[%clk 0:01:40.3]}
37. Qd5+ {[%clk 0:03:27.4]} 37... Kf8 {[%clk 0:01:37.7]} 38. Kh4 {[%clk
0:03:23.2]} 38... a5 {[%clk 0:01:25.2]} 39. f4 {[%clk 0:03:16.5]} 39... a4
{[%clk 0:01:19]} 40. f5 {[%clk 0:03:12.7]} 40... b4 {[%clk 0:01:13.6]} 41. Qa8+
{[%clk 0:03:06.9]} 41... Kf7 {[%clk 0:01:12]} 42. Qd5+ {[%clk 0:03:05.3]} 42...
Kf8 {[%clk 0:01:10.4]} 43. Kh3 {[%clk 0:02:58.9]} 43... a3 {[%clk 0:01:07.5]}
44. bxa3 {[%clk 0:02:57.1]} 44... bxa3 {[%clk 0:01:05.4]} 45. Qa8+ {[%clk
0:02:55.8]} 45... Kf7 {[%clk 0:01:03.8]} 46. Qxa3 {[%clk 0:02:54.2]} 46... c3
{[%clk 0:01:00.6]} 47. Qc5 {[%clk 0:02:50.1]} 47... c2 {[%clk 0:00:57.6]} 48.
Qc4+ {[%clk 0:02:49]} 48... Kf8 {[%clk 0:00:55.8]} 49. Qxc2 {[%clk 0:02:47.6]}
49... Qxd6 {[%clk 0:00:54]} 50. Qc8+ {[%clk 0:02:43.3]} 50... Kf7 {[%clk
0:00:52.8]} 51. Qb7+ {[%clk 0:02:39.9]} 51... Kf8 {[%clk 0:00:52]} 52. Qb3
{[%clk 0:02:35.6]} 52... Qd4 {[%clk 0:00:47.7]} 53. Qb8+ {[%clk 0:02:30.6]}
53... Kf7 {[%clk 0:00:45.8]} 54. Qc7+ {[%clk 0:02:29.4]} 54... Kf8 {[%clk
0:00:44.9]} 55. Qc8+ {[%clk 0:02:28.4]} 55... Kf7 {[%clk 0:00:44.1]} 56. Qb7+
{[%clk 0:02:25.4]} 56... Kf8 {[%clk 0:00:43.2]} 57. Qf3 {[%clk 0:02:23.7]} 57...
Qe5 {[%clk 0:00:40.9]} 58. Qa3+ {[%clk 0:02:19.4]} 58... Kf7 {[%clk 0:00:38.9]}
59. Qb3+ {[%clk 0:02:18.3]} 59... Kf8 {[%clk 0:00:38]} 60. Qd3 {[%clk
0:02:14.2]} 60... Qf4 {[%clk 0:00:34.5]} 61. Qd8+ {[%clk 0:02:11.1]} 61... Kf7
{[%clk 0:00:31.2]} 62. Qd7+ {[%clk 0:02:10.2]} 62... Kf8 {[%clk 0:00:30.3]} 63.
Qd3 {[%clk 0:02:01.6]} 63... Qf2 {[%clk 0:00:27.6]} 64. Qg3 {[%clk 0:01:56.8]}
64... Qxg3+ {[%clk 0:00:25.7]} 65. Kxg3 {[%clk 0:01:56.1]} 65... Ke7 {[%clk
0:00:24.9]} 66. Kf4 {[%clk 0:01:52.1]} 66... Kd6 {[%clk 0:00:24.1]} 67. Ke4
{[%clk 0:01:50.7]} 67... Kc5 {[%clk 0:00:22.9]} 68. Ke3 {[%clk 0:01:45]} 68...
Kd5 {[%clk 0:00:20.7]} 69. Kd3 {[%clk 0:01:43.9]} 69... Ke5 {[%clk 0:00:20]} 70.
Ke3 {[%clk 0:01:43]} 70... Kd5 {[%clk 0:00:19.1]} 71. Kd3 {[%clk 0:01:41.3]}
71... Ke5 {[%clk 0:00:18.1]} 72. Ke3 {[%clk 0:01:40.2]} 72... Kd5 {[%clk
0:00:17.3]} 1/2-1/2

[Event "Live Chess"]
[Site "Chess.com"]
[Date "2023.05.21"]
[Round "-"]
[White "BJAW87"]
[Black "WelshTiger"]
[Result "0-1"]
[WhiteElo "1433"]
[BlackElo "2355"]
[TimeControl "300"]
[EndTime "23:22:17 PDT"]
[Termination "WelshTiger won by resignation"]

1. e4 {[%clk 0:04:59]} 1... c5 {[%clk 0:04:56.8]} 2. Nf3 {[%clk 0:04:56.1]} 2...
d6 {[%clk 0:04:56.1]} 3. d4 {[%clk 0:04:53]} 3... cxd4 {[%clk 0:04:56]} 4. Nxd4
{[%clk 0:04:52.2]} 4... Nf6 {[%clk 0:04:55.3]} 5. Nc3 {[%clk 0:04:50.4]} 5...
Nc6 {[%clk 0:04:55]} 6. Bc4 {[%clk 0:04:42.3]} 6... Bd7 {[%clk 0:04:53.1]} 7.
O-O {[%clk 0:04:40.7]} 7... g6 {[%clk 0:04:51.5]} 8. f4 {[%clk 0:04:31.3]} 8...
Bg7 {[%clk 0:04:43.9]} 9. Qf3 {[%clk 0:04:20.2]} 9... Nxd4 {[%clk 0:04:42]} 10.
Qg3 {[%clk 0:04:15.4]} 10... Nxc2 {[%clk 0:04:30.8]} 0-1

[Event "Live Chess"]
[Site "Chess.com"]
[Date "2023.05.21"]
[Round "-"]
[White "ProfPoisson"]
[Black "HoarseyHorsey"]
[Result "1-0"]
[WhiteElo "1155"]
[BlackElo "1416"]
[TimeControl "300"]
[EndTime "23:22:43 PDT"]
[Termination "ProfPoisson won on time"]

1. e3 {[%clk 0:04:55.9]} 1... d5 {[%clk 0:04:56.9]} 2. d4 {[%clk 0:04:53.6]}
2... Nc6 {[%clk 0:04:55.3]} 3. c4 {[%clk 0:04:49.7]} 3... e6 {[%clk 0:04:53.3]}
4. Nc3 {[%clk 0:04:45.1]} 4... Nf6 {[%clk 0:04:52.1]} 5. Nf3 {[%clk 0:04:38.1]}
5... Be7 {[%clk 0:04:50.3]} 6. Ne5 {[%clk 0:04:25]} 6... Nxe5 {[%clk 0:04:48.3]}
7. dxe5 {[%clk 0:04:22.9]} 7... Nd7 {[%clk 0:04:46.8]} 8. cxd5 {[%clk
0:04:17.9]} 8... Nxe5 {[%clk 0:04:43.5]} 9. dxe6 {[%clk 0:04:14.8]} 9... Qxd1+
{[%clk 0:04:41.9]} 10. Kxd1 {[%clk 0:04:04.1]} 10... Bxe6 {[%clk 0:04:40]} 11.
f4 {[%clk 0:03:53.6]} 11... O-O-O+ {[%clk 0:04:29]} 12. Bd2 {[%clk 0:03:50.5]}
12... Nd3 {[%clk 0:04:20.6]} 13. Bxd3 {[%clk 0:03:47.4]} 13... Rxd3 {[%clk
0:04:18.8]} 14. Rf1 {[%clk 0:03:27]} 14... Rhd8 {[%clk 0:04:14.6]} 15. Rf2
{[%clk 0:03:25.6]} 15... Bb4 {[%clk 0:03:54.4]} 16. Rc1 {[%clk 0:03:18.5]} 16...
Bxc3 {[%clk 0:03:48.9]} 17. Rxc3 {[%clk 0:03:11.4]} 17... Rxc3 {[%clk
0:03:41.2]} 18. bxc3 {[%clk 0:03:08.8]} 18... Bxa2 {[%clk 0:03:39.9]} 19. Kc2
{[%clk 0:03:02.7]} 19... Bc4 {[%clk 0:03:33.9]} 20. Kb2 {[%clk 0:02:56.3]} 20...
Rd6 {[%clk 0:03:18.8]} 21. e4 {[%clk 0:02:53.7]} 21... Rb6+ {[%clk 0:03:05.4]}
22. Kc1 {[%clk 0:02:47.3]} 22... Kd7 {[%clk 0:02:40.6]} 23. e5 {[%clk
0:02:45.5]} 23... Ke6 {[%clk 0:02:35.6]} 24. g4 {[%clk 0:02:32.5]} 24... f6
{[%clk 0:02:18.5]} 25. Be3 {[%clk 0:02:23.6]} 25... Ra6 {[%clk 0:02:11.4]} 26.
exf6 {[%clk 0:02:17.5]} 26... gxf6 {[%clk 0:02:07.2]} 27. f5+ {[%clk 0:02:15]}
27... Kf7 {[%clk 0:01:50.1]} 28. h4 {[%clk 0:02:08.3]} 28... b6 {[%clk
0:01:46.2]} 29. g5 {[%clk 0:02:04.4]} 29... Ra2 {[%clk 0:01:44.7]} 30. Rxa2
{[%clk 0:01:46.5]} 30... Bxa2 {[%clk 0:01:43.4]} 31. Kb2 {[%clk 0:01:45.1]}
31... Bc4 {[%clk 0:01:41.4]} 32. Ka3 {[%clk 0:01:36.1]} 32... Bd3 {[%clk
0:01:30.6]} 33. gxf6 {[%clk 0:01:17.9]} 33... Kxf6 {[%clk 0:01:23]} 34. Bf4
{[%clk 0:01:17.8]} 34... c6 {[%clk 0:01:16.3]} 35. Bg5+ {[%clk 0:01:14.8]} 35...
Kxf5 {[%clk 0:01:14]} 36. Kb4 {[%clk 0:01:12.2]} 36... Ke6 {[%clk 0:01:02.9]}
37. c4 {[%clk 0:01:09.1]} 37... Ke5 {[%clk 0:00:56.3]} 38. c5 {[%clk 0:01:05.7]}
38... bxc5+ {[%clk 0:00:49.4]} 39. Kxc5 {[%clk 0:01:03.8]} 39... Be4 {[%clk
0:00:42.8]} 40. Kb4 {[%clk 0:00:53.2]} 40... Kd4 {[%clk 0:00:39.7]} 41. Ka5
{[%clk 0:00:49.9]} 41... c5 {[%clk 0:00:33.6]} 42. Ka6 {[%clk 0:00:49.8]} 42...
c4 {[%clk 0:00:31.8]} 43. Kxa7 {[%clk 0:00:48.3]} 43... c3 {[%clk 0:00:30.4]}
44. Kb6 {[%clk 0:00:47]} 44... Kd3 {[%clk 0:00:28.3]} 45. Kc7 {[%clk 0:00:46.9]}
45... c2 {[%clk 0:00:24.9]} 46. Kd7 {[%clk 0:00:46.8]} 46... Kc3 {[%clk
0:00:22.3]} 47. Ke7 {[%clk 0:00:44.1]} 47... Kb2 {[%clk 0:00:20.6]} 48. Ke6
{[%clk 0:00:40.3]} 48... c1=Q {[%clk 0:00:15.1]} 49. Bxc1+ {[%clk 0:00:38]}
49... Kxc1 {[%clk 0:00:15]} 50. Ke5 {[%clk 0:00:35.6]} 50... Bb1 {[%clk
0:00:11.6]} 51. h5 {[%clk 0:00:33.9]} 51... Kd2 {[%clk 0:00:10.8]} 52. h6 {[%clk
0:00:33.6]} 52... Ke3 {[%clk 0:00:10]} 53. Kf6 {[%clk 0:00:32.6]} 53... Kf3
{[%clk 0:00:09.2]} 54. Kg7 {[%clk 0:00:32.5]} 54... Kg4 {[%clk 0:00:07.7]} 55.
Kh8 {[%clk 0:00:32.2]} 55... Kf5 {[%clk 0:00:03.6]} 56. Kg7 {[%clk 0:00:32.1]}
56... Ke5 {[%clk 0:00:02.5]} 57. Kh8 {[%clk 0:00:29.8]} 57... Kf6 {[%clk
0:00:01]} 58. Kg8 {[%clk 0:00:29.1]} 1-0

[Event "Live Chess"]
[Site "Chess.com"]
[Date "2023.05.21"]
[Round "-"]
[White "OleksiyJr1"]
[Black "CeladonFish"]
[Result "0-1"]
[WhiteElo "960"]
[BlackElo "1097"]
[TimeControl "300"]
[EndTime "23:23:07 PDT"]
[Termination "CeladonFish won by checkmate"]

1. e4 {[%clk 0:04:58.9]} 1... d6 {[%clk 0:04:59.1]} 2. Nf3 {[%clk 0:04:56.4]}
2... Nf6 {[%clk 0:04:58.1]} 3. Nc3 {[%clk 0:04:55]} 3... g6 {[%clk 0:04:57.7]}
4. d3 {[%clk 0:04:52.7]} 4... Bg7 {[%clk 0:04:57.1]} 5. Bg5 {[%clk 0:04:51.8]}
5... O-O {[%clk 0:04:56.8]} 6. Be2 {[%clk 0:04:50.4]} 6... c5 {[%clk 0:04:53.9]}
7. O-O {[%clk 0:04:48.6]} 7... Bg4 {[%clk 0:04:53]} 8. h3 {[%clk 0:04:45.6]}
8... Bxf3 {[%clk 0:04:51.6]} 9. Bxf3 {[%clk 0:04:45.5]} 9... Nbd7 {[%clk
0:04:50.5]} 10. Be2 {[%clk 0:04:39.3]} 10... Ne5 {[%clk 0:04:47.1]} 11. f4
{[%clk 0:04:25.5]} 11... Nc6 {[%clk 0:04:42.2]} 12. Bf3 {[%clk 0:04:11.8]} 12...
Qb6 {[%clk 0:04:36.2]} 13. b3 {[%clk 0:04:06.1]} 13... Nh5 {[%clk 0:04:21.4]}
14. Qd2 {[%clk 0:04:02.2]} 14... Qb4 {[%clk 0:04:08.2]} 15. Nd5 {[%clk
0:03:54.6]} 15... Qxd2 {[%clk 0:04:03.3]} 16. Nxe7+ {[%clk 0:03:53.3]} 16... Kh8
{[%clk 0:04:00.3]} 17. Rad1 {[%clk 0:03:48.9]} 17... Qc3 {[%clk 0:03:48.4]} 18.
Nxc6 {[%clk 0:03:36.8]} 18... bxc6 {[%clk 0:03:46.2]} 19. e5 {[%clk 0:03:35.9]}
19... dxe5 {[%clk 0:03:44]} 20. Bxc6 {[%clk 0:03:34.9]} 20... Rac8 {[%clk
0:03:41.1]} 21. Be4 {[%clk 0:03:32.8]} 21... exf4 {[%clk 0:03:37.4]} 22. Bb7
{[%clk 0:03:17.3]} 22... Rc7 {[%clk 0:03:32.2]} 23. Be4 {[%clk 0:03:09]} 23...
Qd4+ {[%clk 0:03:27.4]} 24. Kh2 {[%clk 0:03:05.4]} 24... f6 {[%clk 0:03:24.9]}
25. Bxf4 {[%clk 0:02:57.4]} 25... Nxf4 {[%clk 0:03:23.1]} 26. Rxf4 {[%clk
0:02:57.3]} 26... Qd6 {[%clk 0:03:17.8]} 27. g3 {[%clk 0:02:52.3]} 27... g5
{[%clk 0:03:15.5]} 28. Rf5 {[%clk 0:02:50.9]} 28... h5 {[%clk 0:03:05.9]} 29.
Rdf1 {[%clk 0:02:37.1]} 29... h4 {[%clk 0:03:02]} 30. R1f3 {[%clk 0:02:23.6]}
30... hxg3+ {[%clk 0:02:55.5]} 31. Rxg3 {[%clk 0:02:23.5]} 31... Kg8 {[%clk
0:02:47.1]} 32. Bd5+ {[%clk 0:02:19.3]} 32... Kh8 {[%clk 0:02:41.1]} 33. h4
{[%clk 0:02:13.2]} 33... Qf4 {[%clk 0:02:29.6]} 34. Rxf4 {[%clk 0:02:06.8]}
34... gxf4 {[%clk 0:02:28.2]} 35. Rg4 {[%clk 0:02:01.5]} 35... f5 {[%clk
0:02:26.4]} 36. Rg5 {[%clk 0:01:59.9]} 36... Be5 {[%clk 0:02:20.3]} 37. Rh5+
{[%clk 0:01:55.7]} 37... Kg7 {[%clk 0:02:17.6]} 38. Rg5+ {[%clk 0:01:54.3]}
38... Kf6 {[%clk 0:02:16.2]} 39. Kg2 {[%clk 0:01:48.1]} 39... Rh8 {[%clk
0:02:11.8]} 40. Kh3 {[%clk 0:01:45.4]} 40... Rch7 {[%clk 0:02:07]} 41. Rg1
{[%clk 0:01:23.7]} 41... Rxh4+ {[%clk 0:02:03.2]} 42. Kg2 {[%clk 0:01:22.3]}
42... Rg4+ {[%clk 0:02:00.8]} 43. Kf1 {[%clk 0:01:20.1]} 43... Rxg1+ {[%clk
0:01:58.6]} 44. Kxg1 {[%clk 0:01:20]} 44... Kg5 {[%clk 0:01:49.5]} 45. Kf2
{[%clk 0:01:14.6]} 45... Kg4 {[%clk 0:01:47.5]} 46. Bf3+ {[%clk 0:01:13.1]}
46... Kg5 {[%clk 0:01:41.2]} 47. Bd5 {[%clk 0:01:11.8]} 47... Rh2+ {[%clk
0:01:36.4]} 48. Bg2 {[%clk 0:01:09.5]} 48... Kg4 {[%clk 0:01:33.7]} 49. c4
{[%clk 0:01:07]} 49... f3 {[%clk 0:01:28.8]} 50. Kg1 {[%clk 0:01:05.9]} 50...
Rxg2+ {[%clk 0:01:26.4]} 51. Kf1 {[%clk 0:00:55.8]} 51... Rxa2 {[%clk
0:01:22.9]} 52. b4 {[%clk 0:00:54.8]} 52... cxb4 {[%clk 0:01:20.6]} 53. d4
{[%clk 0:00:54.7]} 53... b3 {[%clk 0:01:18.8]} 54. c5 {[%clk 0:00:54.1]} 54...
b2 {[%clk 0:01:18.2]} 55. c6 {[%clk 0:00:53.7]} 55... b1=Q# {[%clk 0:01:17]} 0-1

[Event "Live Chess"]
[Site "Chess.com"]
[Date "2023.05.21"]
[Round "-"]
[White "Conradical12"]
[Black "Crowded_House"]
[Result "1-0"]
[WhiteElo "1615"]
[BlackElo "1688"]
[TimeControl "300"]
[EndTime "23:23:11 PDT"]
[Termination "Conradical12 won by resignation"]

1. e4 {[%clk 0:04:58.4]} 1... e6 {[%clk 0:04:58.8]} 2. Nf3 {[%clk 0:04:56.6]}
2... d5 {[%clk 0:04:57.7]} 3. exd5 {[%clk 0:04:55]} 3... exd5 {[%clk 0:04:55.4]}
4. d4 {[%clk 0:04:54.3]} 4... Bg4 {[%clk 0:04:53.3]} 5. c4 {[%clk 0:04:53]} 5...
c6 {[%clk 0:04:50]} 6. Nc3 {[%clk 0:04:51.2]} 6... Nf6 {[%clk 0:04:43.3]} 7. Bg5
{[%clk 0:04:48.3]} 7... h6 {[%clk 0:04:38]} 8. Bf4 {[%clk 0:04:43.8]} 8... Bd6
{[%clk 0:04:34.1]} 9. Bg3 {[%clk 0:04:38]} 9... O-O {[%clk 0:04:31.4]} 10. Be2
{[%clk 0:04:35.7]} 10... Re8 {[%clk 0:04:30.3]} 11. c5 {[%clk 0:04:32.5]} 11...
Bc7 {[%clk 0:04:26.6]} 12. Qd2 {[%clk 0:04:28]} 12... Ne4 {[%clk 0:04:20.7]} 13.
Nxe4 {[%clk 0:04:24.6]} 13... Rxe4 {[%clk 0:04:18.9]} 14. O-O-O {[%clk 0:04:20]}
14... Nd7 {[%clk 0:04:08]} 15. Bd6 {[%clk 0:04:09.4]} 15... Bxd6 {[%clk
0:04:05.2]} 16. cxd6 {[%clk 0:04:06.1]} 16... Nf6 {[%clk 0:04:04.1]} 17. h3
{[%clk 0:03:59.7]} 17... Bh5 {[%clk 0:03:50.2]} 18. g4 {[%clk 0:03:57]} 18...
Bg6 {[%clk 0:03:48]} 19. Nh4 {[%clk 0:03:53.7]} 19... Qe7 {[%clk 0:03:36.3]} 20.
dxe7 {[%clk 0:03:49.9]} 1-0

[Event "Live Chess"]
[Site "Chess.com"]
[Date "2023.05.21"]
[Round "-"]
[White "martynstanley"]
[Black "martinsmartin63"]
[Result "1-0"]
[WhiteElo "1014"]
[BlackElo "758"]
[TimeControl "300"]
[EndTime "23:23:12 PDT"]
[Termination "martynstanley won by checkmate"]

1. d4 {[%clk 0:04:59.3]} 1... d5 {[%clk 0:04:56]} 2. e3 {[%clk 0:04:58.7]} 2...
Nf6 {[%clk 0:04:50.3]} 3. Bd3 {[%clk 0:04:57.5]} 3... Bg4 {[%clk 0:04:46.2]} 4.
f3 {[%clk 0:04:55.8]} 4... Bd7 {[%clk 0:04:40]} 5. f4 {[%clk 0:04:53.8]} 5... e5
{[%clk 0:04:36.6]} 6. fxe5 {[%clk 0:04:52.4]} 6... Ne4 {[%clk 0:04:33.3]} 7. Nd2
{[%clk 0:04:50.5]} 7... Nxd2 {[%clk 0:04:29.9]} 8. Bxd2 {[%clk 0:04:49]} 8...
Nc6 {[%clk 0:04:21.3]} 9. Nf3 {[%clk 0:04:47.6]} 9... Bb4 {[%clk 0:04:17.9]} 10.
c3 {[%clk 0:04:45.1]} 10... Be7 {[%clk 0:04:13]} 11. O-O {[%clk 0:04:43.9]}
11... Bh4 {[%clk 0:04:04.6]} 12. Nxh4 {[%clk 0:04:37.8]} 12... Qxh4 {[%clk
0:03:59.9]} 13. Be1 {[%clk 0:04:36.4]} 13... Qg5 {[%clk 0:03:54.2]} 14. Qf3
{[%clk 0:04:34.1]} 14... O-O {[%clk 0:03:45.3]} 15. e4 {[%clk 0:04:30.9]} 15...
dxe4 {[%clk 0:03:40.9]} 16. Qxe4 {[%clk 0:04:29.7]} 16... g6 {[%clk 0:03:30.8]}
17. Rf3 {[%clk 0:04:26.3]} 17... Rae8 {[%clk 0:03:09.3]} 18. h4 {[%clk
0:04:23.8]} 18... Qh6 {[%clk 0:02:57.4]} 19. Rd1 {[%clk 0:04:19.5]} 19... g5
{[%clk 0:02:36.3]} 20. Bd2 {[%clk 0:04:14.4]} 20... Qh5 {[%clk 0:02:30.3]} 21.
hxg5 {[%clk 0:04:09.4]} 21... Bg4 {[%clk 0:02:09.4]} 22. Kf2 {[%clk 0:04:03.4]}
22... Bxf3 {[%clk 0:02:06.1]} 23. gxf3 {[%clk 0:04:02.1]} 23... Qh2+ {[%clk
0:02:02.6]} 24. Ke3 {[%clk 0:04:00.2]} 24... Qh5 {[%clk 0:01:35]} 25. Rf1 {[%clk
0:03:56.6]} 25... Qxg5+ {[%clk 0:01:30.7]} 26. Ke2 {[%clk 0:03:55.1]} 26... Qg2+
{[%clk 0:01:25.6]} 27. Rf2 {[%clk 0:03:52.5]} 27... Qg3 {[%clk 0:00:58.6]} 28.
Qxh7# {[%clk 0:03:43.1]} 1-0

[Event "Live Chess"]
[Site "Chess.com"]
[Date "2023.05.21"]
[Round "-"]
[White "Doge_Dandolo"]
[Black "AlanPaling"]
[Result "1-0"]
[WhiteElo "1902"]
[BlackElo "1361"]
[TimeControl "300"]
[EndTime "23:24:24 PDT"]
[Termination "Doge_Dandolo won by resignation"]

1. Nf3 {[%clk 0:04:57.9]} 1... c5 {[%clk 0:04:58.2]} 2. c4 {[%clk 0:04:56.2]}
2... Nc6 {[%clk 0:04:57.5]} 3. d4 {[%clk 0:04:54.6]} 3... cxd4 {[%clk
0:04:56.2]} 4. Nxd4 {[%clk 0:04:53.3]} 4... g6 {[%clk 0:04:55.3]} 5. Nc3 {[%clk
0:04:49]} 5... Bg7 {[%clk 0:04:53.8]} 6. Nc2 {[%clk 0:04:48.1]} 6... Nf6 {[%clk
0:04:45.6]} 7. g3 {[%clk 0:04:46.8]} 7... O-O {[%clk 0:04:43.1]} 8. Bg2 {[%clk
0:04:45.9]} 8... d6 {[%clk 0:04:41.4]} 9. O-O {[%clk 0:04:44.4]} 9... Bd7 {[%clk
0:04:39.8]} 10. Bg5 {[%clk 0:04:38.9]} 10... Qc8 {[%clk 0:04:37.6]} 11. Re1
{[%clk 0:04:36.8]} 11... Bh3 {[%clk 0:04:34.4]} 12. Bh1 {[%clk 0:04:33.5]} 12...
Bf5 {[%clk 0:04:32]} 13. Ne3 {[%clk 0:04:28.7]} 13... Bd7 {[%clk 0:04:21.6]} 14.
Rc1 {[%clk 0:04:26.9]} 14... h6 {[%clk 0:04:10.5]} 15. Bxf6 {[%clk 0:04:22.8]}
15... Bxf6 {[%clk 0:04:09.4]} 16. b3 {[%clk 0:04:20.2]} 16... Nd4 {[%clk
0:03:59.2]} 17. Ncd5 {[%clk 0:04:17.5]} 17... Bg7 {[%clk 0:03:54.5]} 18. Nxe7+
{[%clk 0:04:15.4]} 1-0

[Event "Live Chess"]
[Site "Chess.com"]
[Date "2023.05.21"]
[Round "-"]
[White "LaupMiths"]
[Black "MaximKhimchenko"]
[Result "1-0"]
[WhiteElo "1816"]
[BlackElo "1405"]
[TimeControl "300"]
[EndTime "23:24:37 PDT"]
[Termination "LaupMiths won - game abandoned"]

1. Nf3 {[%clk 0:04:52.9]} 1... e5 {[%clk 0:04:59.9]} 2. Nxe5 {[%clk 0:04:48.7]}
2... d5 {[%clk 0:04:59.2]} 3. d4 {[%clk 0:04:46.7]} 3... Bd6 {[%clk 0:04:57.9]}
4. Nf3 {[%clk 0:04:41.5]} 4... Nf6 {[%clk 0:04:56.1]} 5. g3 {[%clk 0:04:40.7]}
5... Bg4 {[%clk 0:04:48.1]} 6. Bg2 {[%clk 0:04:38.9]} 6... O-O {[%clk
0:04:47.3]} 7. O-O {[%clk 0:04:37.5]} 7... Nc6 {[%clk 0:04:46.7]} 8. h3 {[%clk
0:04:34.2]} 8... Bxf3 {[%clk 0:04:44.4]} 9. Bxf3 {[%clk 0:04:33]} 9... Qd7
{[%clk 0:04:39.3]} 10. Bg2 {[%clk 0:04:31.9]} 10... Rfe8 {[%clk 0:04:20.7]} 11.
Be3 {[%clk 0:04:26.6]} 11... Bxg3 {[%clk 0:04:15.7]} 12. Bg5 {[%clk 0:04:13.4]}
12... Bd6 {[%clk 0:04:11]} 13. c3 {[%clk 0:04:05.7]} 13... Nh5 {[%clk
0:04:05.5]} 14. Nd2 {[%clk 0:04:02.2]} 14... Bf4 {[%clk 0:04:03.4]} 15. Bh4
{[%clk 0:03:55.1]} 15... g5 {[%clk 0:03:55.8]} 16. e3 {[%clk 0:03:48.5]} 16...
gxh4 {[%clk 0:03:53.8]} 17. exf4 {[%clk 0:03:47.1]} 17... Nxf4 {[%clk
0:03:52.8]} 18. Qg4+ {[%clk 0:03:44]} 18... Qxg4 {[%clk 0:03:51]} 19. hxg4
{[%clk 0:03:43.9]} 19... h3 {[%clk 0:03:40.7]} 20. Bf3 {[%clk 0:03:39.6]} 20...
Kg7 {[%clk 0:03:31.1]} 21. Kh2 {[%clk 0:03:38]} 21... Kg6 {[%clk 0:03:27.7]} 22.
Kg3 {[%clk 0:03:37]} 22... Ne2+ {[%clk 0:03:22.1]} 23. Kxh3 {[%clk 0:03:33.7]}
23... Nf4+ {[%clk 0:03:19.1]} 24. Kg3 {[%clk 0:03:32.3]} 24... Ne2+ {[%clk
0:03:18.2]} 25. Kh2 {[%clk 0:03:17]} 25... Nf4 {[%clk 0:03:11.1]} 26. Rae1
{[%clk 0:03:15.1]} 26... Nd3 {[%clk 0:02:59.9]} 27. Rxe8 {[%clk 0:03:00.3]}
27... Rxe8 {[%clk 0:02:56.3]} 28. Bxd5 {[%clk 0:02:59.7]} 28... Ne7 {[%clk
0:02:50.2]} 29. Be4+ {[%clk 0:02:57.7]} 1-0